Workbook

Sheet Октябрь
C1: Анализ загруженности октябрь 2020 | AJ1: Октябрь | AN1: 1 неделя | AR1: 2 неделя | AV1: 3 неделя | AZ1: 4 неделя | BD1: 5 неделя
A2: Факт выезд машин | AK2: план загруженности | AL2: ср. дневн. Бут. | AM2: вывоз в день, заявок | AO2: план загруженности | AP2: ср. дневн. Бут. | AQ2: вывоз в день, заявок | AS2: план загруженности | AT2: ср. дневн. Бут. | AU2: вывоз в день, заявок | AW2: план загруженности | AX2: ср. дневн. Бут. | AY2: вывоз в день, заявок | BA2: план загруженности | BB2: ср. дневн. Бут. | BC2: вывоз в день, заявок | BE2: план загруженности | BF2: ср. дневн. Бут. | BG2: вывоз в день, заявок
A3: № экипажа | B3: гос. № а/м | C3: план загруж. | D3: рейс | E3: 1 | F3: 2 | G3: 3 | H3: 4 | I3: 5 | J3: 6 | K3: 7 | L3: 8 | M3: 9 | N3: 10 | O3: 11 | P3: 12 | Q3: 13 | R3: 14 | S3: 15 | T3: 16 | U3: 17 | V3: 18 | W3: 19 | X3: 20 | Y3: 21 | Z3: 22 | AA3: 23 | AB3: 24 | AC3: 25 | AD3: 26 | AE3: 27 | AF3: 28 | AG3: 29 | AH3: 30 | AI3: 31 | AJ3: бут/заявка | AK3: кол-во отр дней | AL3: % загруж. Бут | AM3: кол-во мин на одного клиента, с 8.00 до 18.00, обед 30мин, дорога 120мин. Время для клиента 10-15мин; 11,12 экипажи от 15минут | AN3: бут/заявка | AO3: кол-во отр дней | AP3: % загруж. Бут | AQ3: кол-во мин на одного клиента, с 8.00 до 18.00, обед 30мин, дорога 120мин. Время для клиента 10-15мин; 11,12 экипажи от 15минут | AR3: бут/заявка | AS3: кол-во отр дней | AT3: % загруж. Бут | AU3: кол-во мин на одного клиента, с 8.00 до 18.00, обед 30мин, дорога 120мин. Время для клиента 10-15мин; 11,12 экипажи от 15минут | AV3: бут/заявка | AW3: кол-во отр дней | AX3: % загруж. Бут | AY3: кол-во мин на одного клиента, с 8.00 до 18.00, обед 30мин, дорога 120мин. Время для клиента 10-15мин; 11,12 экипажи от 15минут | AZ3: бут/заявка | BA3: кол-во отр дней | BB3: % загруж. Бут | BC3: кол-во мин на одного клиента, с 8.00 до 18.00, обед 30мин, дорога 120мин. Время для клиента 10-15мин; 11,12 экипажи от 15минут | BD3: бут/заявка | BE3: кол-во отр дней | BF3: % загруж. Бут | BG3: кол-во мин на одного клиента, с 8.00 до 18.00, обед 30мин, дорога 120мин. Время для клиента 10-15мин; 11,12 экипажи от 15минут
E4: бут | F4: бут | G4: бут | H4: бут | I4: бут | J4: бут | K4: бут | L4: бут | M4: бут | N4: бут | O4: бут | P4: бут | Q4: бут | R4: бут | S4: бут | T4: бут | U4: бут | V4: бут | W4: бут | X4: бут | Y4: бут | Z4: бут | AA4: бут | AB4: бут | AC4: бут | AD4: бут | AE4: бут | AF4: бут | AG4: бут | AH4: бут | AI4: бут
A5: 1 | B5: 966 | C5: 140 | D5: 1 рейс вывоз | E5: 68 | F5: 96 | G5: 34 | I5: 128 | J5: 120 | K5: 112 | L5: 74 | M5: 135 | N5: 55 | P5: 111 | Q5: 108 | AJ5: =SUM(E5:AI5) -> 1041 | AK5: =SUM(AJ5:AJ7)/AK9 -> 109.4545455 | AL5: =AK5/C5 -> 0.7818181818 | AM5: =SUM(AJ8:AJ9)/AL5 -> 534.6511628 | AN5: =SUM(E5:G5) -> 198 | AO5: =SUM(AN5:AN7)/AO9 -> 81.33333333 | AP5: =AO5/C5 -> 0.580952381 | AQ5: =SUM(AN8:AN9)/AP5 -> 153.1967213 | AR5: =SUM(I5:N5) -> 624 | AS5: =SUM(AR5:AR7)/AS9 -> 119.6666667 | AT5: =AS5/C5 -> 0.8547619048 | AU5: =SUM(AR8:AR9)/AT5 -> 274.9303621 | AV5: =SUM(P5:U5) -> 219 | AW5: =SUM(AV5:AV7)/AW9 -> 121 | AX5: =AW5/C5 -> 0.8642857143 | AY5: =SUM(AV8:AV9)/AX5 -> 108.7603306 | AZ5: =SUM(W5:AB5) -> 0 | BA5: =SUM(AZ5:AZ7)/BA9 ->  | BB5: =BA5/C5 ->  | BC5: =SUM(AZ8:AZ9)/BB5 ->  | BD5: =SUM(AD5:AI5) -> 0 | BE5: =SUM(BD5:BD7)/BE9 ->  | BF5: =BE5/C5 ->  | BG5: =SUM(BD8:BD9)/BF5 -> 
D6: доп вода | E6: 7 | F6: 14 | I6: 10 | J6: 6 | K6: 5 | AJ6: =SUM(E6:AI6) -> 42 | AN6: =SUM(E6:G6) -> 21 | AR6: =SUM(I6:N6) -> 21 | AV6: =SUM(P6:U6) -> 0 | AZ6: =SUM(W6:AB6) -> 0 | BD6: =SUM(AD6:AI6) -> 0
D7: 2 рейс | E7: 25 | I7: 25 | J7: 21 | L7: 27 | P7: 23 | AJ7: =SUM(E7:AI7) -> 121 | AN7: 25 | AR7: 73 | AV7: 23 | AZ7: 0 | BD7: 0
D8: Заявка | E8: 21 | F8: 35 | G8: 22 | I8: 38 | J8: 33 | K8: 39 | L8: 31 | M8: 39 | N8: 15 | P8: 38 | Q8: 42 | AJ8: 353 | AN8: 78 | AR8: 195 | AV8: 80 | AZ8: 0 | BD8: 0
D9: Заявка 2 рейс | E9: 11 | I9: 13 | J9: 12 | L9: 15 | P9: 14 | AJ9: 65 | AK9: =COUNT(E5:AI5) -> 11 | AM9: =420/AM5 -> 0.7855589387 | AN9: 11 | AO9: =COUNT(E5:G5) -> 3 | AQ9: =420/AQ5 -> 2.741573034 | AR9: 40 | AS9: =COUNT(I5:N5) -> 6 | AU9: =420/AU5 -> 1.527659574 | AV9: 14 | AW9: =COUNT(P5:U5) -> 2 | AY9: =420/AY5 -> 3.861702128 | AZ9: 0 | BA9: =COUNT(T5:Y5) -> 0 | BC9: =420/BC5 ->  | BD9: 0 | BE9: =COUNT(AD5:AI5) -> 0 | BG9: =420/BG5 -> 
A10: 2 | B10: наемник | C10: 100 | D10: 1 рейс вывоз | E10: 67 | F10: 69 | G10: 71 | I10: 87 | J10: 69 | K10: 100 | L10: 56 | M10: 94 | P10: 89 | Q10: 90 | AJ10: =SUM(E10:AI10) -> 792 | AK10: =SUM(AJ10:AJ12)/AK14 -> 89 | AL10: =AK10/C10 -> 0.89 | AM10: =SUM(AJ13:AJ14)/AL10 -> 386.5168539 | AN10: 207 | AO10: =SUM(AN10:AN12)/AO14 -> 75.33333333 | AP10: =AO10/C10 -> 0.7533333333 | AQ10: =SUM(AN13:AN14)/AP10 -> 130.0884956 | AR10: 406 | AS10: =SUM(AR10:AR12)/AS14 -> 91 | AT10: =AS10/C10 -> 0.91 | AU10: =SUM(AR13:AR14)/AT10 -> 184.6153846 | AV10: 179 | AW10: =SUM(AV10:AV12)/AW14 -> 104.5 | AX10: =AW10/C10 -> 1.045 | AY10: =SUM(AV13:AV14)/AX10 -> 74.64114833 | AZ10: 0 | BA10: =SUM(AZ10:AZ12)/BA14 ->  | BB10: =BA10/C10 ->  | BC10: =SUM(AZ13:AZ14)/BB10 ->  | BD10: 0 | BE10: =SUM(BD10:BD12)/BE14 ->  | BF10: =BE10/C10 ->  | BG10: =SUM(BD13:BD14)/BF10 -> 
D11: доп вода | E11: 2 | F11: 1 | I11: 4 | J11: 4 | AJ11: =SUM(E11:AI11) -> 11 | AN11: =SUM(E11:G11) -> 3 | AR11: =SUM(I11:N11) -> 8 | AV11: =SUM(P11:U11) -> 0 | AZ11: =SUM(W11:AB11) -> 0 | BD11: =SUM(AD11:AI11) -> 0
D12: 2 рейс | E12: 16 | J12: 18 | L12: 23 | Q12: 30 | AJ12: =SUM(E12:AI12) -> 87 | AN12: 16 | AR12: 41 | AV12: 30 | AZ12: 0 | BD12: 0
D13: Заявка | E13: 25 | F13: 23 | G13: 40 | I13: 27 | J13: 30 | K13: 36 | L13: 23 | M13: 30 | P13: 27 | Q13: 34 | AJ13: 295 | AN13: 88 | AR13: 146 | AV13: 61 | AZ13: 0 | BD13: 0
D14: Заявка 2 рейс | E14: 10 | J14: 10 | L14: 12 | Q14: 17 | AJ14: 49 | AK14: =COUNT(E10:AI10) -> 10 | AM14: =420/AM10 -> 1.086627907 | AN14: 10 | AO14: =COUNT(E10:G10) -> 3 | AQ14: =420/AQ10 -> 3.228571429 | AR14: 22 | AS14: =COUNT(I10:N10) -> 5 | AU14: =420/AU10 -> 2.275 | AV14: 17 | AW14: =COUNT(P10:U10) -> 2 | AY14: =420/AY10 -> 5.626923077 | AZ14: 0 | BA14: =COUNT(T10:Y10) -> 0 | BC14: =420/BC10 ->  | BD14: 0 | BE14: =COUNT(AD10:AI10) -> 0 | BG14: =420/BG10 -> 
A15: 3 | B15: 887 | C15: 110 | D15: 1 рейс вывоз | E15: 105 | F15: 57 | I15: 90 | J15: 101 | K15: 102 | L15: 98 | M15: 70 | N15: 80 | P15: 83 | Q15: 86 | AJ15: =SUM(E15:AI15) -> 872 | AK15: =SUM(AJ15:AJ17)/AK19 -> 89.1 | AL15: =AK15/C15 -> 0.81 | AM15: =SUM(AJ18:AJ19)/AL15 -> 398.7654321 | AN15: =SUM(E15:G15) -> 162 | AO15: =SUM(AN15:AN17)/AO19 -> 86 | AP15: =AO15/C15 -> 0.7818181818 | AQ15: =SUM(AN18:AN19)/AP15 -> 81.86046512 | AR15: =SUM(I15:N15) -> 541 | AS15: =SUM(AR15:AR17)/AS19 -> 91.66666667 | AT15: =AS15/C15 -> 0.8333333333 | AU15: =SUM(AR18:AR19)/AT15 -> 236.4 | AV15: 169 | AW15: =SUM(AV15:AV17)/AW19 -> 84.5 | AX15: =AW15/C15 -> 0.7681818182 | AY15: =SUM(AV18:AV19)/AX15 -> 80.71005917 | AZ15: 0 | BA15: =SUM(AZ15:AZ17)/BA19 ->  | BB15: =BA15/C15 ->  | BC15: =SUM(AZ18:AZ19)/BB15 ->  | BD15: 0 | BE15: =SUM(BD15:BD17)/BE19 ->  | BF15: =BE15/C15 ->  | BG15: =SUM(BD18:BD19)/BF15 -> 
D16: доп вода | E16: 10 | I16: 9 | AJ16: =SUM(E16:AI16) -> 19 | AN16: =SUM(E16:G16) -> 10 | AR16: 9 | AV16: 0 | AZ16: 0 | BD16: 0
D17: 2 рейс | AJ17: =SUM(E17:AI17) -> 0 | AN17: 0 | AR17: 0 | AV17: 0 | AZ17: 0 | BD17: 0
D18: Заявка | E18: 36 | F18: 28 | I18: 37 | J18: 35 | K18: 33 | L18: 37 | M18: 25 | N18: 30 | P18: 28 | Q18: 34 | AJ18: 323 | AN18: 64 | AR18: 197 | AV18: 62 | AZ18: 0 | BD18: 0
D19: Заявка 2 рейс | AJ19: 0 | AK19: =COUNT(E15:AI15) -> 10 | AM19: =420/AM15 -> 1.053250774 | AN19: 0 | AO19: =COUNT(E15:G15) -> 2 | AQ19: =420/AQ15 -> 5.130681818 | AR19: 0 | AS19: =COUNT(I15:N15) -> 6 | AU19: =420/AU15 -> 1.776649746 | AV19: 0 | AW19: =COUNT(P15:U15) -> 2 | AY19: =420/AY15 -> 5.203812317 | AZ19: 0 | BA19: =COUNT(T15:Y15) -> 0 | BC19: =420/BC15 ->  | BD19: 0 | BE19: =COUNT(AD15:AI15) -> 0 | BG19: =420/BG15 -> 
A20: 4 | B20: 241 | C20: 110 | D20: 1 рейс вывоз | E20: 120 | F20: 76 | I20: 101 | J20: 110 | K20: 112 | L20: 120 | M20: 85 | N20: 76 | P20: 79 | Q20: 109 | AJ20: =SUM(E20:AI20) -> 988 | AK20: =SUM(AJ20:AJ22)/AK24 -> 115.5 | AL20: =AK20/C20 -> 1.05 | AM20: =SUM(AJ23:AJ24)/AL20 -> 369.5238095 | AN20: 196 | AO20: =SUM(AN20:AN22)/AO24 -> 124 | AP20: =AO20/C20 -> 1.127272727 | AQ20: =SUM(AN23:AN24)/AP20 -> 64.75806452 | AR20: 604 | AS20: =SUM(AR20:AR22)/AS24 -> 114.1666667 | AT20: =AS20/C20 -> 1.037878788 | AU20: =SUM(AR23:AR24)/AT20 -> 228.350365 | AV20: 188 | AW20: =SUM(AV20:AV22)/AW24 -> 111 | AX20: =AW20/C20 -> 1.009090909 | AY20: =SUM(AV23:AV24)/AX20 -> 77.2972973 | AZ20: 0 | BA20: =SUM(AZ20:AZ22)/BA24 ->  | BB20: =BA20/C20 ->  | BC20: =SUM(AZ23:AZ24)/BB20 ->  | BD20: 0 | BE20: =SUM(BD20:BD22)/BE24 ->  | BF20: =BE20/C20 ->  | BG20: =SUM(BD23:BD24)/BF20 -> 
D21: доп вода | E21: 26 | I21: 29 | AJ21: =SUM(E21:AI21) -> 55 | AN21: 26 | AR21: 29 | AV21: 0 | AZ21: 0 | BD21: 0
D22: 2 рейс | E22: 26 | I22: 29 | L22: 23 | P22: 34 | AJ22: =SUM(E22:AI22) -> 112 | AN22: 26 | AR22: 52 | AV22: 34 | AZ22: 0 | BD22: 0
D23: Заявка | E23: 36 | F23: 23 | I23: 29 | J23: 45 | K23: 41 | L23: 32 | M23: 33 | N23: 29 | P23: 20 | Q23: 40 | AJ23: 328 | AN23: 59 | AR23: 209 | AV23: 60 | AZ23: 0 | BD23: 0
D24: Заявка 2 рейс | E24: 14 | I24: 16 | L24: 12 | P24: 18 | AJ24: 60 | AK24: =COUNT(E20:AI20) -> 10 | AM24: =420/AM20 -> 1.136597938 | AN24: 14 | AO24: =COUNT(E20:G20) -> 2 | AQ24: =420/AQ20 -> 6.485678705 | AR24: 28 | AS24: =COUNT(I20:N20) -> 6 | AU24: =420/AU20 -> 1.839278865 | AV24: 18 | AW24: =COUNT(P20:U20) -> 2 | AY24: =420/AY20 -> 5.433566434 | AZ24: 0 | BA24: =COUNT(T20:Y20) -> 0 | BC24: =420/BC20 ->  | BD24: 0 | BE24: =COUNT(AD20:AI20) -> 0 | BG24: =420/BG20 -> 
A25: 6 | B25: 659 | C25: 110 | D25: 1 рейс вывоз | E25: 101 | F25: 85 | G25: 111 | I25: 78 | J25: 123 | K25: 78 | L25: 87 | M25: 108 | Q25: 116 | AJ25: =SUM(E25:AI25) -> 887 | AK25: =SUM(AJ25:AJ27)/AK29 -> 114.6666667 | AL25: =AK25/C25 -> 1.042424242 | AM25: =SUM(AJ28:AJ29)/AL25 -> 358.7790698 | AN25: 297 | AO25: =SUM(AN25:AN27)/AO29 -> 121.3333333 | AP25: =AO25/C25 -> 1.103030303 | AQ25: =SUM(AN28:AN29)/AP25 -> 114.2307692 | AR25: 474 | AS25: =SUM(AR25:AR27)/AS29 -> 107 | AT25: =AS25/C25 -> 0.9727272727 | AU25: =SUM(AR28:AR29)/AT25 -> 204.5794393 | AV25: 116 | AW25: =SUM(AV25:AV27)/AW29 -> 133 | AX25: =AW25/C25 -> 1.209090909 | AY25: =SUM(AV28:AV29)/AX25 -> 40.52631579 | AZ25: 0 | BA25: =SUM(AZ25:AZ27)/BA29 ->  | BB25: =BA25/C25 ->  | BC25: =SUM(AZ28:AZ29)/BB25 ->  | BD25: 0 | BE25: =SUM(BD25:BD27)/BE29 ->  | BF25: =BE25/C25 ->  | BG25: =SUM(BD28:BD29)/BF25 -> 
D26: доп вода | E26: 28 | F26: 9 | I26: 9 | J26: 2 | K26: 9 | AJ26: =SUM(E26:AI26) -> 57 | AN26: 37 | AR26: 20 | AV26: 0 | AZ26: 0 | BD26: 0
D27: 2 рейс | F27: 30 | I27: 23 | K27: 18 | Q27: 17 | AJ27: =SUM(E27:AI27) -> 88 | AN27: 30 | AR27: 41 | AV27: 17 | AZ27: 0 | BD27: 0
D28: Заявка | E28: 40 | F28: 27 | G28: 44 | I28: 29 | J28: 44 | K28: 31 | L28: 36 | M28: 34 | Q28: 37 | AJ28: 322 | AN28: 111 | AR28: 174 | AV28: 37 | AZ28: 0 | BD28: 0
D29: Заявка 2 рейс | F29: 15 | I29: 15 | K29: 10 | Q29: 12 | AJ29: 52 | AK29: =COUNT(E25:AI25) -> 9 | AM29: =420/AM25 -> 1.17063685 | AN29: 15 | AO29: =COUNT(E25:G25) -> 3 | AQ29: =420/AQ25 -> 3.676767677 | AR29: 25 | AS29: =COUNT(I25:N25) -> 5 | AU29: =420/AU25 -> 2.052992234 | AV29: 12 | AW29: =COUNT(P25:U25) -> 1 | AY29: =420/AY25 -> 10.36363636 | AZ29: 0 | BA29: =COUNT(T25:Y25) -> 0 | BC29: =420/BC25 ->  | BD29: 0 | BE29: =COUNT(AD25:AI25) -> 0 | BG29: =420/BG25 -> 
A30: 7 | B30: 863 | C30: 110 | D30: 1 рейс вывоз | E30: 75 | I30: 135 | J30: 76 | K30: 125 | L30: 99 | M30: 108 | N30: 70 | P30: 91 | Q30: 121 | AJ30: =SUM(E30:AI30) -> 900 | AK30: =SUM(AJ30:AJ32)/AK34 -> 105.8888889 | AL30: =AK30/C30 -> 0.9626262626 | AM30: =SUM(AJ33:AJ34)/AL30 -> 365.6663169 | AN30: 75 | AO30: =SUM(AN30:AN32)/AO34 -> 79 | AP30: =AO30/C30 -> 0.7181818182 | AQ30: =SUM(AN33:AN34)/AP30 -> 40.37974684 | AR30: 613 | AS30: =SUM(AR30:AR32)/AS34 -> 106.8333333 | AT30: =AS30/C30 -> 0.9712121212 | AU30: =SUM(AR33:AR34)/AT30 -> 245.0546022 | AV30: 212 | AW30: =SUM(AV30:AV32)/AW34 -> 116.5 | AX30: =AW30/C30 -> 1.059090909 | AY30: =SUM(AV33:AV34)/AX30 -> 80.25751073 | AZ30: 0 | BA30: =SUM(AZ30:AZ32)/BA34 ->  | BB30: =BA30/C30 ->  | BC30: =SUM(AZ33:AZ34)/BB30 ->  | BD30: 0 | BE30: =SUM(BD30:BD32)/BE34 ->  | BF30: =BE30/C30 ->  | BG30: =SUM(BD33:BD34)/BF30 -> 
D31: доп вода | E31: 4 | I31: 5 | AJ31: =SUM(E31:AI31) -> 9 | AN31: 4 | AR31: 5 | AV31: 0 | AZ31: 0 | BD31: 0
D32: 2 рейс | I32: 23 | P32: 21 | AJ32: =SUM(E32:AI32) -> 44 | AN32: 0 | AR32: 23 | AV32: 21 | AZ32: 0 | BD32: 0
D33: Заявка | E33: 29 | I33: 44 | J33: 36 | K33: 39 | L33: 41 | M33: 36 | N33: 30 | P33: 30 | Q33: 45 | AJ33: 330 | AN33: 29 | AR33: 226 | AV33: 75 | AZ33: 0 | BD33: 0
D34: Заявка 2 рейс | I34: 12 | P34: 10 | AJ34: 22 | AK34: =COUNT(E30:AI30) -> 9 | AM34: =420/AM30 -> 1.148588154 | AN34: 0 | AO34: =COUNT(E30:G30) -> 1 | AQ34: =420/AQ30 -> 10.40125392 | AR34: 12 | AS34: =COUNT(I30:N30) -> 6 | AU34: =420/AU30 -> 1.713903743 | AV34: 10 | AW34: =COUNT(P30:U30) -> 2 | AY34: =420/AY30 -> 5.23315508 | AZ34: 0 | BA34: =COUNT(T30:Y30) -> 0 | BC34: =420/BC30 ->  | BD34: 0 | BE34: =COUNT(AD30:AI30) -> 0 | BG34: =420/BG30 -> 
A35: 8 | B35: 293 | C35: 110 | D35: 1 рейс вывоз | E35: 70 | F35: 58 | G35: 50 | I35: 56 | J35: 99 | K35: 90 | L35: 105 | M35: 100 | P35: 68 | Q35: 70 | AJ35: =SUM(E35:AI35) -> 766 | AK35: =SUM(AJ35:AJ37)/AK39 -> 81.9 | AL35: =AK35/C35 -> 0.7445454545 | AM35: =SUM(AJ38:AJ39)/AL35 -> 354.5787546 | AN35: 178 | AO35: =SUM(AN35:AN37)/AO39 -> 67.66666667 | AP35: =AO35/C35 -> 0.6151515152 | AQ35: =SUM(AN38:AN39)/AP35 -> 120.2955665 | AR35: 450 | AS35: =SUM(AR35:AR37)/AS39 -> 95.6 | AT35: =AS35/C35 -> 0.8690909091 | AU35: =SUM(AR38:AR39)/AT35 -> 169.1422594 | AV35: 138 | AW35: =SUM(AV35:AV37)/AW39 -> 69 | AX35: =AW35/C35 -> 0.6272727273 | AY35: =SUM(AV38:AV39)/AX35 -> 68.55072464 | AZ35: 0 | BA35: =SUM(AZ35:AZ37)/BA39 ->  | BB35: =BA35/C35 ->  | BC35: =SUM(AZ38:AZ39)/BB35 ->  | BD35: 0 | BE35: =SUM(BD35:BD37)/BE39 ->  | BF35: =BE35/C35 ->  | BG35: =SUM(BD38:BD39)/BF35 -> 
D36: доп вода | E36: 15 | G36: 10 | I36: 11 | K36: 17 | AJ36: =SUM(E36:AI36) -> 53 | AN36: 25 | AR36: 28 | AV36: 0 | AZ36: 0 | BD36: 0
D37: 2 рейс | AJ37: =SUM(E37:AI37) -> 0 | AN37: 0 | AR37: 0 | AV37: 0 | AZ37: 0 | BD37: 0
D38: Заявка | E38: 22 | F38: 32 | G38: 20 | I38: 20 | J38: 31 | K38: 37 | L38: 37 | M38: 22 | P38: 20 | Q38: 23 | AJ38: 264 | AN38: 74 | AR38: 147 | AV38: 43 | AZ38: 0 | BD38: 0
D39: Заявка 2 рейс | AJ39: 0 | AK39: =COUNT(E35:AI35) -> 10 | AM39: =420/AM35 -> 1.184504132 | AN39: 0 | AO39: =COUNT(E35:G35) -> 3 | AQ39: =420/AQ35 -> 3.491400491 | AR39: 0 | AS39: =COUNT(I35:N35) -> 5 | AU39: =420/AU35 -> 2.483116883 | AV39: 0 | AW39: =COUNT(P35:U35) -> 2 | AY39: =420/AY35 -> 6.126849894 | AZ39: 0 | BA39: =COUNT(T35:Y35) -> 0 | BC39: =420/BC35 ->  | BD39: 0 | BE39: =COUNT(AD35:AI35) -> 0 | BG39: =420/BG35 -> 
A40: 9 | B40: наемник | C40: 100 | D40: 1 рейс вывоз | E40: 67 | F40: 89 | I40: 77 | J40: 128 | K40: 114 | L40: 72 | M40: 69 | P40: 110 | Q40: 121 | AJ40: =SUM(E40:AI40) -> 847 | AK40: =SUM(AJ40:AJ42)/AK44 -> 104 | AL40: =AK40/C40 -> 1.04 | AM40: =SUM(AJ43:AJ44)/AL40 -> 323.0769231 | AN40: 156 | AO40: =SUM(AN40:AN42)/AO44 -> 96.5 | AP40: =AO40/C40 -> 0.965 | AQ40: =SUM(AN43:AN44)/AP40 -> 75.64766839 | AR40: 460 | AS40: =SUM(AR40:AR42)/AS44 -> 99.6 | AT40: =AS40/C40 -> 0.996 | AU40: =SUM(AR43:AR44)/AT40 -> 173.6947791 | AV40: 231 | AW40: =SUM(AV40:AV42)/AW44 -> 122.5 | AX40: =AW40/C40 -> 1.225 | AY40: =SUM(AV43:AV44)/AX40 -> 73.46938776 | AZ40: 0 | BA40: =SUM(AZ40:AZ42)/BA44 ->  | BB40: =BA40/C40 ->  | BC40: =SUM(AZ43:AZ44)/BB40 ->  | BD40: 0 | BE40: =SUM(BD40:BD42)/BE44 ->  | BF40: =BE40/C40 ->  | BG40: =SUM(BD43:BD44)/BF40 -> 
D41: доп вода | E41: 4 | I41: 8 | J41: 2 | K41: 2 | AJ41: =SUM(E41:AI41) -> 16 | AN41: 4 | AR41: 12 | AV41: 0 | AZ41: 0 | BD41: 0
D42: 2 рейс | F42: 33 | J42: 26 | Q42: 14 | AJ42: =SUM(E42:AI42) -> 73 | AN42: 33 | AR42: 26 | AV42: 14 | AZ42: 0 | BD42: 0
D43: Заявка | E43: 32 | F43: 27 | I43: 28 | J43: 45 | K43: 32 | L43: 27 | M43: 23 | P43: 38 | Q43: 41 | AJ43: 293 | AN43: 59 | AR43: 155 | AV43: 79 | AZ43: 0 | BD43: 0
D44: Заявка 2 рейс | F44: 14 | J44: 18 | Q44: 11 | AJ44: 43 | AK44: =COUNT(E40:AI40) -> 9 | AM44: =420/AM40 -> 1.3 | AN44: 14 | AO44: =COUNT(E40:G40) -> 2 | AQ44: =420/AQ40 -> 5.552054795 | AR44: 18 | AS44: =COUNT(I40:N40) -> 5 | AU44: =420/AU40 -> 2.418034682 | AV44: 11 | AW44: =COUNT(P40:U40) -> 2 | AY44: =420/AY40 -> 5.716666667 | AZ44: 0 | BA44: =COUNT(T40:Y40) -> 0 | BC44: =420/BC40 ->  | BD44: 0 | BE44: =COUNT(AD40:AI40) -> 0 | BG44: =420/BG40 -> 
A45: 11 | B45: 937 | C45: 130 | D45: 1 рейс вывоз | E45: 97 | F45: 107 | G45: 50 | I45: 76 | J45: 93 | K45: 122 | L45: 36 | M45: 92 | P45: 75 | Q45: 73 | AJ45: =SUM(E45:AI45) -> 821 | AK45: =SUM(AJ45:AJ47)/AK49 -> 91.6 | AL45: =AK45/C45 -> 0.7046153846 | AM45: =SUM(AJ48:AJ49)/AL45 -> 371.8340611 | AN45: 254 | AO45: =SUM(AN45:AN47)/AO49 -> 86 | AP45: =AO45/C45 -> 0.6615384615 | AQ45: =SUM(AN48:AN49)/AP45 -> 104.3023256 | AR45: 419 | AS45: =SUM(AR45:AR47)/AS49 -> 96.4 | AT45: =AS45/C45 -> 0.7415384615 | AU45: =SUM(AR48:AR49)/AT45 -> 182.0539419 | AV45: 148 | AW45: =SUM(AV45:AV47)/AW49 -> 88 | AX45: =AW45/C45 -> 0.6769230769 | AY45: =SUM(AV48:AV49)/AX45 -> 85.68181818 | AZ45: 0 | BA45: =SUM(AZ45:AZ47)/BA49 ->  | BB45: =BA45/C45 ->  | BC45: =SUM(AZ48:AZ49)/BB45 ->  | BD45: 0 | BE45: =SUM(BD45:BD47)/BE49 ->  | BF45: =BE45/C45 ->  | BG45: =SUM(BD48:BD49)/BF45 -> 
D46: доп вода | E46: 4 | I46: 4 | J46: 10 | K46: 5 | AJ46: =SUM(E46:AI46) -> 23 | AN46: 4 | AR46: 19 | AV46: 0 | AZ46: 0 | BD46: 0
D47: 2 рейс | L47: 22 | M47: 22 | Q47: 28 | AJ47: =SUM(E47:AI47) -> 72 | AN47: 0 | AR47: 44 | AV47: 28 | AZ47: 0 | BD47: 0
D48: Заявка | E48: 30 | F48: 18 | G48: 21 | I48: 23 | J48: 32 | K48: 25 | L48: 14 | M48: 14 | P48: 18 | Q48: 25 | AJ48: 220 | AN48: 69 | AR48: 108 | AV48: 43 | AZ48: 0 | BD48: 0
D49: Заявка 2 рейс | L49: 14 | M49: 13 | Q49: 15 | AJ49: 42 | AK49: =COUNT(E45:AI45) -> 10 | AM49: =420/AM45 -> 1.129536113 | AN49: 0 | AO49: =COUNT(E45:G45) -> 3 | AQ49: =420/AQ45 -> 4.026755853 | AR49: 27 | AS49: =COUNT(I45:N45) -> 5 | AU49: =420/AU45 -> 2.307008547 | AV49: 15 | AW49: =COUNT(P45:U45) -> 2 | AY49: =420/AY45 -> 4.901856764 | AZ49: 0 | BA49: =COUNT(T45:Y45) -> 0 | BC49: =420/BC45 ->  | BD49: 0 | BE49: =COUNT(AD45:AI45) -> 0 | BG49: =420/BG45 -> 
A50: 12 | B50: 920 | C50: 130 | D50: 1 рейс вывоз | E50: 120 | F50: 110 | I50: 95 | J50: 109 | K50: 114 | L50: 133 | M50: 145 | N50: 58 | P50: 125 | Q50: 103 | AJ50: =SUM(E50:AI50) -> 1112 | AK50: =SUM(AJ50:AJ52)/AK54 -> 112 | AL50: =AK50/C50 -> 0.8615384615 | AM50: =SUM(AJ53:AJ54)/AL50 -> 342.4107143 | AN50: =SUM(E50:G50) -> 230 | AO50: =SUM(AN50:AN52)/AO54 -> 116 | AP50: =AO50/C50 -> 0.8923076923 | AQ50: =SUM(AN53:AN54)/AP50 -> 73.96551724 | AR50: =SUM(I50:N50) -> 654 | AS50: =SUM(AR50:AR52)/AS54 -> 110 | AT50: =AS50/C50 -> 0.8461538462 | AU50: =SUM(AR53:AR54)/AT50 -> 187.9090909 | AV50: =SUM(P50:U50) -> 228 | AW50: =SUM(AV50:AV52)/AW54 -> 114 | AX50: =AW50/C50 -> 0.8769230769 | AY50: =SUM(AV53:AV54)/AX50 -> 79.8245614 | AZ50: =SUM(W50:AB50) -> 0 | BA50: =SUM(AZ50:AZ52)/BA54 ->  | BB50: =BA50/C50 ->  | BC50: =SUM(AZ53:AZ54)/BB50 ->  | BD50: =SUM(AD50:AI50) -> 0 | BE50: =SUM(BD50:BD52)/BE54 ->  | BF50: =BE50/C50 ->  | BG50: =SUM(BD53:BD54)/BF50 -> 
D51: доп вода | F51: 2 | J51: 3 | K51: 3 | AJ51: =SUM(E51:AI51) -> 8 | AN51: 2 | AR51: 6 | AV51: 0 | AZ51: 0 | BD51: 0
D52: 2 рейс | AJ52: =SUM(E52:AI52) -> 0 | AN52: 0 | AR52: 0 | AV52: 0 | AZ52: 0 | BD52: 0
D53: Заявка | E53: 22 | F53: 44 | I53: 14 | J53: 40 | K53: 29 | L53: 15 | M53: 36 | N53: 25 | P53: 35 | Q53: 35 | AJ53: 295 | AN53: 66 | AR53: 159 | AV53: 70 | AZ53: 0 | BD53: 0
D54: Заявка 2 рейс | AJ54: 0 | AK54: =COUNT(E50:AI50) -> 10 | AM54: =420/AM50 -> 1.226597132 | AN54: 0 | AO54: =COUNT(E50:G50) -> 2 | AQ54: =420/AQ50 -> 5.678321678 | AR54: 0 | AS54: =COUNT(I50:N50) -> 6 | AU54: =420/AU50 -> 2.235123367 | AV54: 0 | AW54: =COUNT(P50:U50) -> 2 | AY54: =420/AY50 -> 5.261538462 | AZ54: 0 | BA54: =COUNT(T50:Y50) -> 0 | BC54: =420/BC50 ->  | BD54: 0 | BE54: =COUNT(AD50:AI50) -> 0 | BG54: =420/BG50 -> 
A55: 13 | B55: 292 | C55: 110 | D55: 1 рейс вывоз | E55: 76 | F55: 58 | I55: 71 | J55: 113 | K55: 88 | L55: 101 | M55: 82 | N55: 133 | P55: 60 | Q55: 97 | AJ55: =SUM(E55:AI55) -> 879 | AK55: =SUM(AJ55:AJ57)/AK59 -> 95.5 | AL55: =AK55/C55 -> 0.8681818182 | AM55: =SUM(AJ58:AJ59)/AL55 -> 360.5235602 | AN55: 134 | AO55: 85 | AP55: =AO55/C55 -> 0.7727272727 | AQ55: =SUM(AN58:AN59)/AP55 -> 73.76470588 | AR55: 588 | AS55: 104.6666667 | AT55: =AS55/C55 -> 0.9515151515 | AU55: =SUM(AR58:AR59)/AT55 -> 214.3949045 | AV55: 157 | AW55: 78.5 | AX55: =AW55/C55 -> 0.7136363636 | AY55: =SUM(AV58:AV59)/AX55 -> 72.86624204 | AZ55: 0 | BB55: =BA55/C55 ->  | BC55: =SUM(AZ58:AZ59)/BB55 ->  | BD55: 0 | BF55: =BE55/C55 ->  | BG55: =SUM(BD58:BD59)/BF55 -> 
D56: доп вода | E56: 10 | F56: 5 | I56: 18 | AJ56: =SUM(E56:AI56) -> 33 | AN56: 15 | AR56: 18 | AV56: 0 | AZ56: 0 | BD56: 0
D57: 2 рейс | F57: 21 | M57: 22 | AJ57: =SUM(E57:AI57) -> 43 | AN57: 21 | AR57: 22 | AV57: 0 | AZ57: 0 | BD57: 0
D58: Заявка | E58: 26 | F58: 17 | I58: 25 | J58: 41 | K58: 27 | L58: 26 | M58: 28 | N58: 46 | P58: 19 | Q58: 33 | AJ58: 288 | AN58: 43 | AR58: 193 | AV58: 52 | AZ58: 0 | BD58: 0
D59: Заявка 2 рейс | F59: 14 | M59: 11 | AJ59: 25 | AK59: =COUNT(E55:AI55) -> 10 | AM59: =420/AM55 -> 1.164972408 | AN59: 14 | AO59: =COUNT(E55:G55) -> 2 | AQ59: 5.693779904 | AR59: 11 | AS59: =COUNT(I55:N55) -> 6 | AU59: 1.959001783 | AV59: 0 | AW59: =COUNT(P55:U55) -> 2 | AY59: 5.763986014 | AZ59: 0 | BA59: =COUNT(T55:Y55) -> 0 | BD59: 0 | BE59: =COUNT(AD55:AI55) -> 0
A60: 14 | C60: 110 | D60: 1 рейс вывоз | E60: 35 | I60: 36 | AJ60: =SUM(E60:AI60) -> 71 | AK60: =SUM(AJ60:AJ62)/AK64 -> 35.5 | AL60: =AK60/C60 -> 0.3227272727 | AM60: =SUM(AJ63:AJ64)/AL60 -> 123.943662 | AN60: 35 | AO60: 35 | AP60: =AO60/C60 -> 0.3181818182 | AQ60: =SUM(AN63:AN64)/AP60 -> 56.57142857 | AR60: 36 | AS60: 36 | AT60: =AS60/C60 -> 0.3272727273 | AU60: =SUM(AR63:AR64)/AT60 -> 67.22222222 | AV60: 0 | AX60: =AW60/C60 ->  | AY60: =SUM(AV63:AV64)/AX60 ->  | AZ60: 0 | BB60: =BA60/C60 ->  | BC60: =SUM(AZ63:AZ64)/BB60 ->  | BD60: 0 | BF60: =BE60/C60 ->  | BG60: =SUM(BD63:BD64)/BF60 -> 
D61: доп вода | AJ61: =SUM(E61:AI61) -> 0 | AN61: 0 | AR61: 0 | AV61: 0 | AZ61: 0 | BD61: 0
D62: 2 рейс | AJ62: =SUM(E62:AI62) -> 0 | AN62: 0 | AR62: 0 | AV62: 0 | AZ62: 0 | BD62: 0
D63: Заявка | E63: 18 | I63: 22 | AJ63: 40 | AN63: 18 | AR63: 22 | AV63: 0 | AZ63: 0 | BD63: 0
D64: Заявка 2 рейс | AJ64: 0 | AK64: =COUNT(E60:AI60) -> 2 | AM64: =420/AM60 -> 3.388636364 | AN64: 0 | AO64: =COUNT(E60:G60) -> 1 | AQ64: 7.424242424 | AR64: 0 | AS64: =COUNT(I60:N60) -> 1 | AU64: 6.247933884 | AV64: 0 | AW64: =COUNT(P60:U60) -> 0 | AZ64: 0 | BA64: =COUNT(T60:Y60) -> 0 | BD64: 0 | BE64: =COUNT(AD60:AI60) -> 0
A65: 15 | B65: 281 | C65: 110 | D65: 1 рейс вывоз | E65: 109 | F65: 69 | I65: 68 | J65: 129 | K65: 108 | L65: 105 | M65: 110 | N65: 41 | P65: 98 | Q65: 106 | AJ65: =SUM(E65:AI65) -> 943 | AK65: =SUM(AJ65:AJ67)/AK69 -> 109 | AL65: =AK65/C65 -> 0.9909090909 | AM65: =SUM(AJ68:AJ69)/AL65 -> 406.6972477 | AN65: 178 | AO65: 96.5 | AP65: =AO65/C65 -> 0.8772727273 | AQ65: =SUM(AN68:AN69)/AP65 -> 83.21243523 | AR65: 561 | AS65: 110.1666667 | AT65: =AS65/C65 -> 1.001515152 | AU65: =SUM(AR68:AR69)/AT65 -> 247.6248109 | AV65: 204 | AW65: 118 | AX65: =AW65/C65 -> 1.072727273 | AY65: =SUM(AV68:AV69)/AX65 -> 76.44067797 | AZ65: 0 | BB65: =BA65/C65 ->  | BC65: =SUM(AZ68:AZ69)/BB65 ->  | BD65: 0 | BF65: =BE65/C65 ->  | BG65: =SUM(BD68:BD69)/BF65 -> 
D66: доп вода | E66: 6 | F66: 9 | I66: 15 | J66: 4 | K66: 43 | AJ66: =SUM(E66:AI66) -> 77 | AN66: 15 | AR66: 62 | AV66: 0 | AZ66: 0 | BD66: 0
D67: 2 рейс | I67: 22 | K67: 16 | P67: 32 | AJ67: =SUM(E67:AI67) -> 70 | AN67: 0 | AR67: 38 | AV67: 32 | AZ67: 0 | BD67: 0
D68: Заявка | E68: 36 | F68: 37 | I68: 27 | J68: 52 | K68: 42 | L68: 44 | M68: 33 | N68: 26 | P68: 40 | Q68: 29 | AJ68: 366 | AN68: 73 | AR68: 224 | AV68: 69 | AZ68: 0 | BD68: 0
D69: Заявка 2 рейс | I69: 15 | K69: 9 | P69: 13 | AJ69: 37 | AK69: =COUNT(E65:AI65) -> 10 | AM69: =420/AM65 -> 1.032709226 | AN69: 0 | AO69: =COUNT(E65:G65) -> 2 | AQ69: 5.04732254 | AR69: 24 | AS69: =COUNT(I65:N65) -> 6 | AU69: 1.69611437 | AV69: 13 | AW69: =COUNT(P65:U65) -> 2 | AY69: 5.494456763 | AZ69: 0 | BA69: =COUNT(T65:Y65) -> 0 | BD69: 0 | BE69: =COUNT(AD65:AI65) -> 0
A70: 16 | B70: наемник | C70: 100 | D70: 1 рейс вывоз | E70: 110 | F70: 148 | G70: 62 | I70: 68 | K70: 40 | P70: 88 | Q70: 87 | AJ70: =SUM(E70:AI70) -> 603 | AK70: =SUM(AJ70:AJ72)/AK74 -> 98.71428571 | AL70: =AK70/C70 -> 0.9871428571 | AM70: =SUM(AJ73:AJ74)/AL70 -> 203.617945 | AN70: 320 | AO70: 124.6666667 | AP70: =AO70/C70 -> 1.246666667 | AQ70: =SUM(AN73:AN74)/AP70 -> 80.21390374 | AR70: 108 | AS70: 61 | AT70: =AS70/C70 -> 0.61 | AU70: =SUM(AR73:AR74)/AT70 -> 52.45901639 | AV70: 175 | AW70: 97.5 | AX70: =AW70/C70 -> 0.975 | AY70: =SUM(AV73:AV74)/AX70 -> 70.76923077 | AZ70: 0 | BB70: =BA70/C70 ->  | BC70: =SUM(AZ73:AZ74)/BB70 ->  | BD70: 0 | BF70: =BE70/C70 ->  | BG70: =SUM(BD73:BD74)/BF70 -> 
D71: доп вода | E71: 18 | F71: 2 | G71: 9 | I71: 14 | AJ71: =SUM(E71:AI71) -> 43 | AN71: 29 | AR71: 14 | AV71: 0 | AZ71: 0 | BD71: 0
D72: 2 рейс | F72: 25 | Q72: 20 | AJ72: =SUM(E72:AI72) -> 45 | AN72: 25 | AR72: 0 | AV72: 20 | AZ72: 0 | BD72: 0
D73: Заявка | E73: 30 | F73: 39 | G73: 22 | I73: 17 | K73: 15 | P73: 21 | Q73: 36 | AJ73: 180 | AN73: 91 | AR73: 32 | AV73: 57 | AZ73: 0 | BD73: 0
D74: Заявка 2 рейс | F74: 9 | Q74: 12 | AJ74: 21 | AK74: =COUNT(E70:AI70) -> 7 | AM74: =420/AM70 -> 2.062686567 | AN74: 9 | AO74: =COUNT(E70:G70) -> 3 | AQ74: 5.236 | AR74: 0 | AS74: =COUNT(I70:N70) -> 2 | AU74: 8.00625 | AV74: 12 | AW74: =COUNT(P70:U70) -> 2 | AY74: 5.934782609 | AZ74: 0 | BA74: =COUNT(T70:Y70) -> 0 | BD74: 0 | BE74: =COUNT(AD70:AI70) -> 0
A75: 17 | B75: наемник | C75: 100 | D75: 1 рейс вывоз | E75: 58 | F75: 94 | G75: 92 | I75: 79 | J75: 85 | K75: 116 | L75: 46 | M75: 60 | P75: 70 | Q75: 126 | AJ75: =SUM(E75:AI75) -> 826 | AK75: =SUM(AJ75:AJ77)/AK79 -> 88.5 | AL75: =AK75/C75 -> 0.885 | AM75: =SUM(AJ78:AJ79)/AL75 -> 334.4632768 | AN75: 244 | AO75: 84 | AP75: =AO75/C75 -> 0.84 | AQ75: =SUM(AN78:AN79)/AP75 -> 104.7619048 | AR75: 386 | AS75: 87.4 | AT75: =AS75/C75 -> 0.874 | AU75: =SUM(AR78:AR79)/AT75 -> 164.7597254 | AV75: 196 | AW75: 98 | AX75: =AW75/C75 -> 0.98 | AY75: =SUM(AV78:AV79)/AX75 -> 65.30612245 | AZ75: 0 | BB75: =BA75/C75 ->  | BC75: =SUM(AZ78:AZ79)/BB75 ->  | BD75: 0 | BF75: =BE75/C75 ->  | BG75: =SUM(BD78:BD79)/BF75 -> 
D76: доп вода | E76: 2 | F76: 3 | G76: 3 | I76: 10 | J76: 3 | K76: 13 | AJ76: =SUM(E76:AI76) -> 34 | AN76: 8 | AR76: 26 | AV76: 0 | AZ76: 0 | BD76: 0
D77: 2 рейс | K77: 25 | AJ77: =SUM(E77:AI77) -> 25 | AN77: 0 | AR77: 25 | AV77: 0 | AZ77: 0 | BD77: 0
D78: Заявка | E78: 23 | F78: 26 | G78: 39 | I78: 28 | J78: 32 | K78: 34 | L78: 19 | M78: 19 | P78: 22 | Q78: 42 | AJ78: 284 | AN78: 88 | AR78: 132 | AV78: 64 | AZ78: 0 | BD78: 0
D79: Заявка 2 рейс | K79: 12 | AJ79: 12 | AK79: =COUNT(E75:AI75) -> 10 | AM79: =420/AM75 -> 1.255743243 | AN79: 0 | AO79: =COUNT(E75:G75) -> 3 | AQ79: 4.009090909 | AR79: 12 | AS79: =COUNT(I75:N75) -> 5 | AU79: 2.549166667 | AV79: 0 | AW79: =COUNT(P75:U75) -> 2 | AY79: 6.43125 | AZ79: 0 | BA79: =COUNT(T75:Y75) -> 0 | BD79: 0 | BE79: =COUNT(AD75:AI75) -> 0
A80: 18 | B80: 679 | C80: 110 | D80: 1 рейс вывоз | E80: 82 | F80: 88 | G80: 36 | I80: 36 | J80: 65 | K80: 111 | L80: 62 | M80: 81 | N80: 33 | P80: 85 | Q80: 103 | AJ80: =SUM(E80:AI80) -> 782 | AK80: =SUM(AJ80:AJ82)/AK84 -> 84 | AL80: =AK80/C80 -> 0.7636363636 | AM80: =SUM(AJ83:AJ84)/AL80 -> 362.7380952 | AN80: 206 | AO80: 83.66666667 | AP80: =AO80/C80 -> 0.7606060606 | AQ80: =SUM(AN83:AN84)/AP80 -> 88.0876494 | AR80: 388 | AS80: 77.5 | AT80: =AS80/C80 -> 0.7045454545 | AU80: =SUM(AR83:AR84)/AT80 -> 211.483871 | AV80: 188 | AW80: 104 | AX80: =AW80/C80 -> 0.9454545455 | AY80: =SUM(AV83:AV84)/AX80 -> 64.51923077 | AZ80: 0 | BB80: =BA80/C80 ->  | BC80: =SUM(AZ83:AZ84)/BB80 ->  | BD80: 0 | BF80: =BE80/C80 ->  | BG80: =SUM(BD83:BD84)/BF80 -> 
D81: доп вода | E81: 10 | F81: 8 | G81: 7 | J81: 1 | K81: 18 | AJ81: =SUM(E81:AI81) -> 44 | AN81: 25 | AR81: 19 | AV81: 0 | AZ81: 0 | BD81: 0
D82: 2 рейс | F82: 20 | J82: 27 | K82: 14 | M82: 17 | Q82: 20 | AJ82: =SUM(E82:AI82) -> 98 | AN82: 20 | AR82: 58 | AV82: 20 | AZ82: 0 | BD82: 0
D83: Заявка | E83: 26 | F83: 20 | G83: 12 | I83: 13 | J83: 22 | K83: 31 | L83: 16 | M83: 24 | N83: 13 | P83: 24 | Q83: 28 | AJ83: 229 | AN83: 58 | AR83: 119 | AV83: 52 | AZ83: 0 | BD83: 0
D84: Заявка 2 рейс | F84: 9 | J84: 14 | K84: 8 | M84: 8 | Q84: 9 | AJ84: 48 | AK84: =COUNT(E80:AI80) -> 11 | AM84: =420/AM80 -> 1.15786019 | AN84: 9 | AO84: =COUNT(E80:G80) -> 3 | AQ84: 4.76797829 | AR84: 30 | AS84: =COUNT(I80:N80) -> 6 | AU84: 1.985967053 | AV84: 9 | AW84: =COUNT(P80:U80) -> 2 | AY84: 6.509687034 | AZ84: 0 | BA84: =COUNT(T80:Y80) -> 0 | BD84: 0 | BE84: =COUNT(AD80:AI80) -> 0
A85: 19 | B85: 392 | C85: 110 | D85: 1 рейс вывоз | E85: 61 | F85: 72 | G85: 39 | J85: 94 | K85: 37 | L85: 47 | Q85: 100 | AJ85: =SUM(E85:AI85) -> 450 | AK85: =SUM(AJ85:AJ87)/AK89 -> 66 | AL85: =AK85/C85 -> 0.6 | AM85: =SUM(AJ88:AJ89)/AL85 -> 291.6666667 | AN85: 172 | AO85: 59.66666667 | AP85: =AO85/C85 -> 0.5424242424 | AQ85: =SUM(AN88:AN89)/AP85 -> 136.424581 | AR85: 178 | AS85: 61 | AT85: =AS85/C85 -> 0.5545454545 | AU85: =SUM(AR88:AR89)/AT85 -> 124.4262295 | AV85: 100 | AW85: 100 | AX85: =AW85/C85 -> 0.9090909091 | AY85: =SUM(AV88:AV89)/AX85 -> 35.2 | AZ85: 0 | BB85: =BA85/C85 ->  | BC85: =SUM(AZ88:AZ89)/BB85 ->  | BD85: 0 | BF85: =BE85/C85 ->  | BG85: =SUM(BD88:BD89)/BF85 -> 
D86: доп вода | E86: 5 | F86: 1 | G86: 1 | J86: 5 | AJ86: =SUM(E86:AI86) -> 12 | AN86: 7 | AR86: 5 | AV86: 0 | AZ86: 0 | BD86: 0
D87: 2 рейс | AJ87: =SUM(E87:AI87) -> 0 | AN87: 0 | AR87: 0 | AV87: 0 | AZ87: 0 | BD87: 0
D88: Заявка | E88: 35 | F88: 25 | G88: 14 | J88: 36 | K88: 9 | L88: 24 | Q88: 32 | AJ88: 175 | AN88: 74 | AR88: 69 | AV88: 32 | AZ88: 0 | BD88: 0
D89: Заявка 2 рейс | AJ89: 0 | AK89: =COUNT(E85:AI85) -> 7 | AM89: =420/AM85 -> 1.44 | AN89: 0 | AO89: =COUNT(E85:G85) -> 3 | AQ89: 3.078624079 | AR89: 0 | AS89: =COUNT(I85:N85) -> 3 | AU89: 3.375494071 | AV89: 0 | AW89: =COUNT(P85:U85) -> 1 | AY89: 11.93181818 | AZ89: 0 | BA89: =COUNT(T85:Y85) -> 0 | BD89: 0 | BE89: =COUNT(AD85:AI85) -> 0
A90: 20 | B90: наемник | C90: 100 | D90: 1 рейс вывоз | E90: 47 | F90: 80 | G90: 22 | I90: 74 | J90: 133 | K90: 58 | L90: 87 | M90: 86 | Q90: 98 | AJ90: =SUM(E90:AI90) -> 685 | AK90: =SUM(AJ90:AJ92)/AK94 -> 81.55555556 | AL90: =AK90/C90 -> 0.8155555556 | AM90: =SUM(AJ93:AJ94)/AL90 -> 354.359673 | AN90: 149 | AO90: 52.33333333 | AP90: =AO90/C90 -> 0.5233333333 | AQ90: =SUM(AN93:AN94)/AP90 -> 131.8471338 | AR90: 438 | AS90: 95.8 | AT90: =AS90/C90 -> 0.958 | AU90: =SUM(AR93:AR94)/AT90 -> 191.0229645 | AV90: 98 | AW90: 98 | AX90: =AW90/C90 -> 0.98 | AY90: =SUM(AV93:AV94)/AX90 -> 37.75510204 | AZ90: 0 | BB90: =BA90/C90 ->  | BC90: =SUM(AZ93:AZ94)/BB90 ->  | BD90: 0 | BF90: =BE90/C90 ->  | BG90: =SUM(BD93:BD94)/BF90 -> 
D91: доп вода | E91: 3 | G91: 5 | AJ91: =SUM(E91:AI91) -> 8 | AN91: 8 | AR91: 0 | AV91: 0 | AZ91: 0 | BD91: 0
D92: 2 рейс | J92: 24 | M92: 17 | AJ92: =SUM(E92:AI92) -> 41 | AN92: 0 | AR92: 41 | AV92: 0 | AZ92: 0 | BD92: 0
D93: Заявка | E93: 22 | F93: 31 | G93: 16 | I93: 30 | J93: 41 | K93: 16 | L93: 39 | M93: 32 | Q93: 37 | AJ93: 264 | AN93: 69 | AR93: 158 | AV93: 37 | AZ93: 0 | BD93: 0
D94: Заявка 2 рейс | J94: 16 | M94: 9 | AJ94: 25 | AK94: =COUNT(E90:AI90) -> 9 | AM94: =420/AM90 -> 1.185236448 | AN94: 0 | AO94: =COUNT(E90:G90) -> 3 | AQ94: 3.185507246 | AR94: 25 | AS94: =COUNT(I90:N90) -> 5 | AU94: 2.198688525 | AV94: 0 | AW94: =COUNT(P90:U90) -> 1 | AY94: 11.12432432 | AZ94: 0 | BA94: =COUNT(T90:Y90) -> 0 | BD94: 0 | BE94: =COUNT(AD90:AI90) -> 0
A95: 21 | B95: 234 | C95: 110 | D95: 1 рейс вывоз | E95: 88 | F95: 105 | I95: 105 | J95: 123 | K95: 101 | L95: 104 | M95: 111 | N95: 89 | P95: 64 | Q95: 71 | AJ95: =SUM(E95:AI95) -> 961 | AK95: =SUM(AJ95:AJ97)/AK99 -> 105.1 | AL95: =AK95/C95 -> 0.9554545455 | AM95: =SUM(AJ98:AJ99)/AL95 -> 405.0428164 | AN95: 193 | AO95: 108 | AP95: =AO95/C95 -> 0.9818181818 | AQ95: =SUM(AN98:AN99)/AP95 -> 70.27777778 | AR95: 633 | AS95: 111.6666667 | AT95: =AS95/C95 -> 1.015151515 | AU95: =SUM(AR98:AR99)/AT95 -> 244.2985075 | AV95: 135 | AW95: 82.5 | AX95: =AW95/C95 -> 0.75 | AY95: =SUM(AV98:AV99)/AX95 -> 93.33333333 | AZ95: 0 | BB95: =BA95/C95 ->  | BC95: =SUM(AZ98:AZ99)/BB95 ->  | BD95: 0 | BF95: =BE95/C95 ->  | BG95: =SUM(BD98:BD99)/BF95 -> 
D96: доп вода | F96: 10 | I96: 4 | K96: 18 | AJ96: =SUM(E96:AI96) -> 32 | AN96: 10 | AR96: 22 | AV96: 0 | AZ96: 0 | BD96: 0
D97: 2 рейс | E97: 13 | L97: 15 | Q97: 30 | AJ97: =SUM(E97:AI97) -> 58 | AN97: 13 | AR97: 15 | AV97: 30 | AZ97: 0 | BD97: 0
D98: Заявка | E98: 22 | F98: 39 | I98: 39 | J98: 43 | K98: 41 | L98: 36 | M98: 34 | N98: 46 | P98: 26 | Q98: 29 | AJ98: 355 | AN98: 61 | AR98: 239 | AV98: 55 | AZ98: 0 | BD98: 0
D99: Заявка 2 рейс | E99: 8 | L99: 9 | Q99: 15 | AJ99: 32 | AK99: =COUNT(E95:AI95) -> 10 | AM99: =420/AM95 -> 1.036927414 | AN99: 8 | AO99: =COUNT(E95:G95) -> 2 | AQ99: 5.976284585 | AR99: 9 | AS99: =COUNT(I95:N95) -> 6 | AU99: 1.719208211 | AV99: 15 | AW99: =COUNT(P95:U95) -> 2 | AY99: 4.5 | AZ99: 0 | BA99: =COUNT(T95:Y95) -> 0 | BD99: 0 | BE99: =COUNT(AD95:AI95) -> 0
A100: 23 | B100: 693 | C100: 140 | D100: 1 рейс вывоз | E100: 125 | F100: 68 | I100: 150 | J100: 139 | K100: 65 | L100: 99 | M100: 105 | N100: 103 | P100: 125 | Q100: 139 | AJ100: =SUM(E100:AI100) -> 1118 | AK100: =SUM(AJ100:AJ102)/AK104 -> 115 | AL100: =AK100/C100 -> 0.8214285714 | AM100: =SUM(AJ103:AJ104)/AL100 -> 484.5217391 | AN100: 193 | AO100: 96.5 | AP100: =AO100/C100 -> 0.6892857143 | AQ100: =SUM(AN103:AN104)/AP100 -> 94.30051813 | AR100: 661 | AS100: 115.5 | AT100: =AS100/C100 -> 0.825 | AU100: =SUM(AR103:AR104)/AT100 -> 310.3030303 | AV100: 264 | AW100: 132 | AX100: =AW100/C100 -> 0.9428571429 | AY100: =SUM(AV103:AV104)/AX100 -> 81.66666667 | AZ100: 0 | BB100: =BA100/C100 ->  | BC100: =SUM(AZ103:AZ104)/BB100 ->  | BD100: 0 | BF100: =BE100/C100 ->  | BG100: =SUM(BD103:BD104)/BF100 -> 
D101: доп вода | J101: 6 | AJ101: =SUM(E101:AI101) -> 6 | AN101: 0 | AR101: 6 | AV101: 0 | AZ101: 0 | BD101: 0
D102: 2 рейс | K102: 26 | AJ102: =SUM(E102:AI102) -> 26 | AN102: 0 | AR102: 26 | AV102: 0 | AZ102: 0 | BD102: 0
D103: Заявка | E103: 37 | F103: 28 | I103: 31 | J103: 53 | K103: 29 | L103: 35 | M103: 45 | N103: 49 | P103: 32 | Q103: 45 | AJ103: 384 | AN103: 65 | AR103: 242 | AV103: 77 | AZ103: 0 | BD103: 0
D104: Заявка 2 рейс | K104: 14 | AJ104: 14 | AK104: =COUNT(E100:AI100) -> 10 | AM104: =420/AM100 -> 0.8668341709 | AN104: 0 | AO104: =COUNT(E100:G100) -> 2 | AQ104: 4.453846154 | AR104: 14 | AS104: =COUNT(I100:N100) -> 6 | AU104: 1.353515625 | AV104: 0 | AW104: =COUNT(P100:U100) -> 2 | AY104: 5.142857143 | AZ104: 0 | BA104: =COUNT(T100:Y100) -> 0 | BD104: 0 | BE104: =COUNT(AD100:AI100) -> 0
A105: 5 | B105: наемник | C105: 100 | D105: 1 рейс вывоз | E105: 64 | F105: 65 | G105: 97 | I105: 61 | J105: 101 | K105: 65 | L105: 85 | M105: 70 | P105: 65 | Q105: 95 | AJ105: =SUM(E105:AI105) -> 768 | AK105: =SUM(AJ105:AJ107)/AK109 -> 92.8 | AL105: =AK105/C105 -> 0.928 | AM105: =SUM(AJ108:AJ109)/AL105 -> 391.1637931 | AN105: 226 | AO105: 82.33333333 | AP105: =AO105/C105 -> 0.8233333333 | AQ105: =SUM(AN108:AN109)/AP105 -> 117.8137652 | AR105: 382 | AS105: 98.4 | AT105: =AS105/C105 -> 0.984 | AU105: =SUM(AR108:AR109)/AT105 -> 186.9918699 | AV105: 160 | AW105: 94.5 | AX105: =AW105/C105 -> 0.945 | AY105: =SUM(AV108:AV109)/AX105 -> 86.77248677 | AZ105: 0 | BB105: =BA105/C105 ->  | BC105: =SUM(AZ108:AZ109)/BB105 ->  | BD105: 0 | BF105: =BE105/C105 ->  | BG105: =SUM(BD108:BD109)/BF105 -> 
D106: доп вода | I106: 29 | K106: 26 | AJ106: =SUM(E106:AI106) -> 55 | AN106: 0 | AR106: 55 | AV106: 0 | AZ106: 0 | BD106: 0
D107: 2 рейс | F107: 21 | I107: 29 | K107: 26 | P107: 29 | AJ107: =SUM(E107:AI107) -> 105 | AN107: 21 | AR107: 55 | AV107: 29 | AZ107: 0 | BD107: 0
D108: Заявка | E108: 22 | F108: 28 | G108: 37 | I108: 26 | J108: 43 | K108: 29 | L108: 33 | M108: 23 | P108: 27 | Q108: 45 | AJ108: 313 | AN108: 87 | AR108: 154 | AV108: 72 | AZ108: 0 | BD108: 0
D109: Заявка 2 рейс | F109: 10 | I109: 16 | K109: 14 | P109: 10 | AJ109: 50 | AK109: =COUNT(E105:AI105) -> 10 | AM109: =420/AM105 -> 1.073719008 | AN109: 10 | AO109: =COUNT(E105:G105) -> 3 | AQ109: 3.564948454 | AR109: 30 | AS109: =COUNT(I105:N105) -> 5 | AU109: 2.246086957 | AV109: 10 | AW109: =COUNT(P105:U105) -> 2 | AY109: 4.840243902 | AZ109: 0 | BA109: =COUNT(T105:Y105) -> 0 | BD109: 0 | BE109: =COUNT(AD105:AI105) -> 0
AI110: бут | AJ110: =SUM(AJ5:AJ7,AJ10:AJ12,AJ15:AJ17,AJ20:AJ22,AJ25:AJ27,AJ30:AJ32,AJ35:AJ37,AJ40:AJ42,AJ45:AJ47,AJ50:AJ52,AJ55:AJ57,AJ60:AJ62,AJ65:AJ67,AJ70:AJ72,AJ75:AJ77,AJ80:AJ82,AJ85:AJ87,AJ90:AJ92,AJ95:AJ97,AJ100:AJ102,AJ105:AJ107) -> 18857 | AN110: =SUM(AN5:AN7,AN10:AN12,AN15:AN17,AN20:AN22,AN25:AN27,AN30:AN32,AN35:AN37,AN40:AN42,AN45:AN47,AN50:AN52,AN55:AN57,AN60:AN62,AN65:AN67,AN70:AN72,AN75:AN77,AN80:AN82,AN85:AN87,AN90:AN92,AN95:AN97,AN100:AN102,AN105:AN107) -> 4486 | AR110: =SUM(AR5:AR7,AR10:AR12,AR15:AR17,AR20:AR22,AR25:AR27,AR30:AR32,AR35:AR37,AR40:AR42,AR45:AR47,AR50:AR52,AR55:AR57,AR60:AR62,AR65:AR67,AR70:AR72,AR75:AR77,AR80:AR82,AR85:AR87,AR90:AR92,AR95:AR97,AR100:AR102,AR105:AR107) -> 10568 | AV110: =SUM(AV5:AV7,AV10:AV12,AV15:AV17,AV20:AV22,AV25:AV27,AV30:AV32,AV35:AV37,AV40:AV42,AV45:AV47,AV50:AV52,AV55:AV57,AV60:AV62,AV65:AV67,AV70:AV72,AV75:AV77,AV80:AV82,AV85:AV87,AV90:AV92,AV95:AV97,AV100:AV102,AV105:AV107) -> 3803 | AZ110: =SUM(AZ5:AZ7,AZ10:AZ12,AZ15:AZ17,AZ20:AZ22,AZ25:AZ27,AZ30:AZ32,AZ35:AZ37,AZ40:AZ42,AZ45:AZ47,AZ50:AZ52,AZ55:AZ57,AZ60:AZ62,AZ65:AZ67,AZ70:AZ72,AZ75:AZ77,AZ80:AZ82,AZ85:AZ87,AZ90:AZ92,AZ95:AZ97,AZ100:AZ102,AZ105:AZ107) -> 0 | BD110: =SUM(BD5:BD7,BD10:BD12,BD15:BD17,BD20:BD22,BD25:BD27,BD30:BD32,BD35:BD37,BD40:BD42,BD45:BD47,BD50:BD52,BD55:BD57,BD60:BD62,BD65:BD67,BD70:BD72,BD75:BD77,BD80:BD82,BD85:BD87,BD90:BD92,BD95:BD97,BD100:BD102,BD105:BD107) -> 0
AI111: Заявки | AJ111: =SUM(AJ8:AJ9,AJ13:AJ14,AJ18:AJ19,AJ23:AJ24,AJ28:AJ29,AJ33:AJ34,AJ38:AJ39,AJ43:AJ44,AJ48:AJ49,AJ53:AJ54,AJ58:AJ59,AJ63:AJ64,AJ68:AJ69,AJ73:AJ74,AJ78:AJ79,AJ83:AJ84,AJ88:AJ89,AJ93:AJ94,AJ98:AJ99,AJ103:AJ104,AJ108:AJ109) -> 6498 | AN111: =SUM(AN8:AN9,AN13:AN14,AN18:AN19,AN23:AN24,AN28:AN29,AN33:AN34,AN38:AN39,AN43:AN44,AN48:AN49,AN53:AN54,AN58:AN59,AN63:AN64,AN68:AN69,AN73:AN74,AN78:AN79,AN83:AN84,AN88:AN89,AN93:AN94,AN98:AN99,AN103:AN104,AN108:AN109) -> 1538 | AR111: =SUM(AR8:AR9,AR13:AR14,AR18:AR19,AR23:AR24,AR28:AR29,AR33:AR34,AR38:AR39,AR43:AR44,AR48:AR49,AR53:AR54,AR58:AR59,AR63:AR64,AR68:AR69,AR73:AR74,AR78:AR79,AR83:AR84,AR88:AR89,AR93:AR94,AR98:AR99,AR103:AR104,AR108:AR109) -> 3627 | AV111: =SUM(AV8:AV9,AV13:AV14,AV18:AV19,AV23:AV24,AV28:AV29,AV33:AV34,AV38:AV39,AV43:AV44,AV48:AV49,AV53:AV54,AV58:AV59,AV63:AV64,AV68:AV69,AV73:AV74,AV78:AV79,AV83:AV84,AV88:AV89,AV93:AV94,AV98:AV99,AV103:AV104,AV108:AV109) -> 1333 | AZ111: =SUM(AZ8:AZ9,AZ13:AZ14,AZ18:AZ19,AZ23:AZ24,AZ28:AZ29,AZ33:AZ34,AZ38:AZ39,AZ43:AZ44,AZ48:AZ49,AZ53:AZ54,AZ58:AZ59,AZ63:AZ64,AZ68:AZ69,AZ73:AZ74,AZ78:AZ79,AZ83:AZ84,AZ88:AZ89,AZ93:AZ94,AZ98:AZ99,AZ103:AZ104,AZ108:AZ109) -> 0 | BD111: =SUM(BD8:BD9,BD13:BD14,BD18:BD19,BD23:BD24,BD28:BD29,BD33:BD34,BD38:BD39,BD43:BD44,BD48:BD49,BD53:BD54,BD58:BD59,BD63:BD64,BD68:BD69,BD73:BD74,BD78:BD79,BD83:BD84,BD88:BD89,BD93:BD94,BD98:BD99,BD103:BD104,BD108:BD109) -> 0
AK112: <90% | AL112: 60%<до<=90% | AM112: <60% | AO112: <90% | AP112: 60%<до<=90% | AQ112: <60% | AS112: <90% | AT112: 60%<до<=90% | AU112: <60% | AW112: <90% | AX112: 60%<до<=90% | AY112: <60% | BA112: <90% | BB112: 60%<до<=90% | BC112: <60% | BE112: <90% | BF112: 60%<до<=90% | BG112: <60%
AF113: Количество авто | AK113: =COUNTIF(AL$5:AL109,">90%") -> 8 | AL113: =COUNTIF(AL5:AL109,"<90%")-COUNTIF(AL5:AL109,"<59%") -> 12 | AM113: =COUNTIF(AL5:AL109,"<59%") -> 1
AF114: загруженность | AK114: =AK113/21 -> 0.380952381 | AL114: =AL113/21 -> 0.5714285714 | AM114: =AM113/21 -> 0.04761904762
AF115: вывоз | AK115: =SUMIFS(AJ$5:AJ$109,D$5:D$109,"1 рейс вывоз",AL$5:AL$109,">90%") -> 6897 | AL115: =SUMIF(AL$5:AL$109,"<90%",AJ$5:AJ$109)-SUMIF(AL$5:AL$109,"<60%",AJ$5:AJ$109) -> 10144 | AM115: =SUMIF(AL$5:AL$109,"<60%",AJ$5:AJ$109) -> 71
AF116: доп | AK116: =SUMIFS(AJ5:AJ109,D5:D109,"доп вода",AL5:AL109,">90%") -> 0
AF117: 2 рейс | AK117: =SUMIFS(AJ5:AJ109,D5:D109,"2 рейс",AL5:AL109,">90%") -> 0
AF118: Заявка | AK118: =SUMIFS(AJ5:AJ109,D5:D109,"заявка",AL5:AL109,">90%") -> 0
AF119: Заявка 2 рейс | AK119: =SUMIFS(AJ5:AJ109,D5:D109,"Заявка 2 рейс",AL5:AL109,">90%") -> 0
AF121: итого | AK121: =SUM(AK115:AK117) -> 6897 | AL121: =SUM(AL115:AL117) -> 10144 | AM121: =SUM(AM115:AM117) -> 71
AF122: ср на 1 авто | AK122: =SUM(AK117/AK115) -> 0 | AL122: =SUM(AL117/AL115) -> 0 | AM122: =SUM(AM117/AM115) -> 0
AF123: ср на 1 авто доп+2 рейс | AK123: =SUM(AK121/AK115) -> 1 | AL123: =SUM(AL121/AL115) -> 1 | AM123: =SUM(AM121/AM115) -> 1
AF125: Так должно получиться
AK126: <90% | AL126: 60%<до<=90% | AM126: <60%
AF127: Количество авто | AK127: =COUNTIF(AL$5:AL109,">90%") -> 8 | AL127: =COUNTIF(AL$5:AL109,"<90%")-COUNTIF(AL$5:AL109,"<59%") -> 12 | AM127: =COUNTIF(AL$5:AL109,"<59%") -> 1
AF128: загруженность | AK128: =AK127/21 -> 0.380952381 | AL128: =AL127/21 -> 0.5714285714 | AM128: 0.04761904762
AF129: 1 рейс вывоз | AK129: =SUMIFS(AJ18:AJ122,D18:D122,"1 рейс вывоз",AL18:AL122,">90%") -> 6897 | AL129: 10144 | AM129: 71 | AO129: =SUMIFS(AJ5:AJ109,D5:D109,AF129,AL$5:AL$109,">90%") -> 6897 | AP129: =SUMIFS(AJ5:AJ109,D5:D109,AF129)-AO129-AQ129 -> 10144 | AQ129: =SUMIFS(AJ5:AJ109,D5:D109,AF129,AL$5:AL$109,"<60%") -> 71
AF130: доп вода | AK130: 344 | AL130: 293 | AM130: 0 | AO130: =SUMIFS(AJ6:AJ110,D6:D110,AF130,AL$5:AL$109,">90%") -> 344 | AP130: =SUMIFS(AJ6:AJ110,D6:D110,AF130)-AO130-AQ130 -> 293 | AQ130: =SUMIFS(AJ6:AJ110,D6:D110,AF130,AL$5:AL$109,"<60%") -> 0
AF131: 2 рейс | AK131: 595 | AL131: 513 | AM131: 0 | AO131: 595 | AP131: 513 | AQ131: 0
AF132: Заявка | AK132: 2487 | AL132: 3374 | AM132: 40 | AO132: 2487 | AP132: 3374 | AQ132: 40
AF133: Заявка 2 рейс | AK133: 317 | AL133: 280 | AM133: 0 | AO133: 317 | AP133: 280 | AQ133: 0
AF135: итого бут | AK135: =SUM(AK129:AK131) -> 7836 | AL135: =SUM(AL129:AL131) -> 10950 | AM135: =SUM(AM129:AM131) -> 71
AF136: итого заявок | AK136: =SUM(AK132:AK133) -> 2804 | AL136: =SUM(AL132:AL133) -> 3654 | AM136: =SUM(AM132:AM133) -> 40
AF137: ср бут на 1 авто | AK137: =SUM(AK129/AK127) -> 862.125 | AL137: =SUM(AL129/AL127) -> 845.3333333 | AM137: =SUM(AM129/AM127) -> 71
AF138: ср на 1 авто доп+2 рейс | AK138: =SUM(AK135/AK127) -> 979.5 | AL138: =SUM(AL135/AL127) -> 912.5 | AM138: =SUM(AM135/AM127) -> 71
